[Event "4th Batumi Cup 2018"]
[Site "Batumi"]
[Date "2018.07.10"]
[Round "9"]
[White "Levin, Evgeny A"]
[Black "Akhvlediani, Irakli"]
[Result "1/2-1/2"]
[ECO "E99"]
[WhiteElo "2539"]
[BlackElo "2264"]
[Annotator "ChessBase"]
[PlyCount "47"]
[EventDate "2018.07.03"]
[EventType "swiss"]
[EventCountry "GEO"]
[SourceTitle "playchess.com"]
[Source "ChessBase"]
[SourceQuality "1"]
[TimeControl "40/5400+30:1800+30"]

1. d4 {[%emt 0:00:00]} Nf6 {[%emt 0:00:00]} 2. c4 {[%emt 0:00:00]} g6 {[%emt 0:00:00]} 3. Nc3 {[%emt 0:00:00]} Bg7 {[%emt 0:00:00]} 4. e4 {[%emt 0:00:00]} O-O {[%emt 0:00:00]} 5. Nf3 {[%emt 0:00:00]} d6 {[%emt 0:00:00]} 6. Be2 {[%emt 0:00:00]} e5 {[%emt 0:00:00]} 7. O-O {[%emt 0:00:00]} Nc6 {[%emt 0:01:08]} 8. d5 {[%emt 0:00:05]} Ne7 {[%emt 0:00:03]} 9. Ne1 {[%emt 0:00:04]} Nd7 {[%emt 0:00:03]} 10. f3 {[%emt 0:00:20]} f5 {[%emt 0:00:04]} 11. g4 {[%emt 0:00:03]} Kh8 {[%emt 0:00:53]} 12. Kg2 {[%emt 0:00:10]} Ng8 {[%emt 0:01:38]} 13. Be3 {[%emt 0:00:09]} Bh6 {[%emt 0:03:33]} 14. Bf2 {[%emt 0:00:26]} Bg5 {[%emt 0:00:38]} 15. Nd3 {[%emt 0:07:06]} Bh4 {[%emt 0:03:21]} 16. Bxh4 {[%emt 0:04:25]} Qxh4 {[%emt 0:00:17]} 17. Qe1 {[%emt 0:00:02]} Qe7 {[%emt 0:02:21]} 18. h4 {[%emt 0:06:24]} fxg4 {[%emt 0:07:07]} 19. fxg4 {[%emt 0:01:03]} Rxf1 {[%emt 0:01:02]} 20. Kxf1 {[%emt 0:00:27]} g5 {[%emt 0:03:31]} 21. h5 {[%emt 0:02:11]} Ndf6 {[%emt 0:02:57]} 22. Qg3 {[%emt 0:00:10]} Nh6 {[%emt 0:00:16]} 23. Nf2 {[%emt 0:00:05]} Bd7 {[%emt 0:10:26]} 24. Kg2 {[%emt 0:00:34]} 1/2-1/2

[Event "4th Batumi Cup 2018"]
[Site "Batumi"]
[Date "2018.07.10"]
[Round "9"]
[White "Sanikidze, Tornike"]
[Black "Quparadze, Giga"]
[Result "0-1"]
[ECO "E13"]
[WhiteElo "2512"]
[BlackElo "2503"]
[Annotator "RC"]
[PlyCount "72"]
[EventDate "2018.07.03"]
[EventType "swiss"]
[EventCountry "GEO"]
[SourceTitle "playchess.com"]
[Source "ChessBase"]
[SourceQuality "1"]
[TimeControl "40/5400+30:1800+30"]

1. d4 {[%emt 0:01:53]} Nf6 {[%emt 0:00:00]} 2. c4 {[%emt 0:00:09]} e6 {[%emt 0:00:00]} 3. Nf3 {[%emt 0:00:13]} b6 {[%emt 0:01:16]} 4. Nc3 {[%emt 0:00:44]} Bb4 {[%emt 0:02:37]} 5. Bg5 {[%emt 0:02:10]} Bb7 {[%emt 0:00:21]} 6. Nd2 {[%emt 0:00:47]} h6 {[%emt 0:03:15]} 7. Bh4 {[%emt 0:00:08]} Nc6 {[%emt 0:02:25]} 8. d5 {[%emt 0:02:31]} Ne5 {[%emt 0:04:27]} 9. e4 {[%emt 0:01:41]} Ng6 {[%emt 0:02:40]} 10. Bg3 {[%emt 0:03:54]} e5 {[%emt 0:00:46]} 11. Rc1 {[%emt 0:01:19]} O-O {[%emt 0:03:35]} 12. a3 {[%emt 0:00:16]} Bxc3 {[%emt 0:00:53]} 13. Rxc3 {[%emt 0:00:06]} d6 {[%emt 0:00:04]} 14. Bd3 {[%emt 0:01:12]} Nf4 {[%emt 0:05:03]} 15. O-O {[%emt 0:00:15]} Qe7 {[%emt 0:06:26]} 16. b4 {[%emt 0:01:07]} a5 {[%emt 0:00:04]} 17. Qb1 {[%emt 0:01:10]} g5 {[%emt 0:06:10]} 18. f3 {[%emt 0:03:08]} h5 {[%emt 0:03:26]} 19. Bf2 {[%emt 0:03:32]} h4 {[%emt 0:00:52]} 20. Rfc1 {[%emt 0:05:13]} axb4 {[%emt 0:01:18]} 21. axb4 {[%emt 0:00:05]} Nxd3 {[%emt 0:00:10]} 22. Qxd3 {[%emt 0:00:46]} Nh5 {[%emt 0:00:08]} 23. g3 {[%emt 0:03:10]} hxg3 {[%emt 0:04:22]} 24. hxg3 {[%emt 0:04:29]} Qd7 {[%emt 0:00:04]} 25. Kg2 {[%emt 0:05:27]} Kg7 {[%emt 0:00:30]} 26. c5 {[%emt 0:04:19]} Rh8 {[%emt 0:01:02]} 27. Rh1 {[%emt 0:01:24]} Nf4+ {[%emt 0:01:13]} 28. gxf4 {[%emt 0:00:49]} Rxh1 {[%emt 0:00:05]} 29. f5 {[%emt 0:02:38]} Rah8 {[%emt 0:00:54]} 30. Bg3 {[%emt 0:03:48]} Qa4 {[%emt 0:01:14]} 31. Qe3 {[%emt 0:01:22]} Qd1 {[%emt 0:02:40]} 32. cxd6 {[%emt 0:01:34]} cxd6 {[%emt 0:04:30]} 33. Rc7 {[%emt 0:04:14]} R1h5 {[%emt 0:00:47]} 34. Nf1 {[%emt 0:01:04]} Ba6 {[%emt 0:00:06]} 35. Qf2 {[%emt 0:00:04]} Bxf1+ {[%emt 0:00:14]} 36. Qxf1 {[%emt 0:00:04]} Rh2+ {[%emt 0:00:05]} 0-1

[Event "4th Batumi Cup 2018"]
[Site "Batumi"]
[Date "2018.07.10"]
[Round "9"]
[White "Nigmatov, Ortik"]
[Black "Tutisani, Noe"]
[Result "0-1"]
[ECO "C55"]
[WhiteElo "2461"]
[BlackElo "2469"]
[Annotator "ChessBase"]
[PlyCount "50"]
[EventDate "2018.07.03"]
[EventType "swiss"]
[EventCountry "GEO"]
[SourceTitle "playchess.com"]
[Source "ChessBase"]
[SourceQuality "1"]
[TimeControl "40/5400+30:1800+30"]

1. e4 {[%emt 0:00:00]} e5 {[%emt 0:00:00]} 2. Nf3 {[%emt 0:00:00]} Nc6 {[%emt 0:00:00]} 3. Bc4 {[%emt 0:00:00]} Nf6 {[%emt 0:00:00]} 4. d3 {[%emt 0:00:00]} h6 {[%emt 0:00:20]} 5. c3 {[%emt 0:01:19]} d6 {[%emt 0:00:09]} 6. Nbd2 {[%emt 0:02:06]} g6 {[%emt 0:00:24]} 7. O-O {[%emt 0:01:08]} Bg7 {[%emt 0:01:44]} 8. h3 {[%emt 0:05:40]} O-O {[%emt 0:00:12]} 9. Bb3 {[%emt 0:00:48]} Nd7 {[%emt 0:00:43]} 10. Nc4 {[%emt 0:04:40]} Nc5 {[%emt 0:00:32]} 11. Bc2 {[%emt 0:00:35]} Ne6 {[%emt 0:05:35]} 12. Re1 {[%emt 0:20:17]} f5 {[%emt 0:04:11]} 13. Ne3 {[%emt 0:11:22]} f4 {[%emt 0:12:43]} 14. Nd5 {[%emt 0:00:11]} a5 {[%emt 0:01:00]} 15. Bb3 {[%emt 0:02:38]} Nb8 {[%emt 0:00:21]} 16. c4 {[%emt 0:26:19]} Nc6 {[%emt 0:00:42]} 17. Nc3 {[%emt 0:02:42]} Ncd4 {[%emt 0:01:06]} 18. Nxd4 {[%emt 0:04:40]} exd4 {[%emt 0:02:06]} 19. Ne2 {[%emt 0:00:02]} f3 {[%emt 0:00:12]} 20. gxf3 {[%emt 0:01:37]} a4 {[%emt 0:01:31]} 21. Bxa4 {[%emt 0:00:50]} Ng5 {[%emt 0:00:30]} 22. Bxg5 {[%emt 0:02:08]} Qxg5+ {[%emt 0:00:05]} 23. Ng3 {[%emt 0:00:05]} Bxh3 {[%emt 0:00:39]} 24. Kh2 {[%emt 0:00:33]} Qh4 {[%emt 0:01:00]} 25. Rh1 {[%emt 0:00:02]} Rxa4 {[%emt 0:02:36]} 0-1

[Event "4th Batumi Cup 2018"]
[Site "Batumi"]
[Date "2018.07.10"]
[Round "9"]
[White "Pogosyan, Stefan"]
[Black "Bashirov, Teymur"]
[Result "1-0"]
[ECO "A13"]
[WhiteElo "2356"]
[BlackElo "2379"]
[Annotator "NA"]
[PlyCount "65"]
[EventDate "2018.07.03"]
[EventType "swiss"]
[EventCountry "GEO"]
[SourceTitle "playchess.com"]
[Source "ChessBase"]
[SourceQuality "1"]
[TimeControl "40/5400+30:1800+30"]

1. Nf3 {[%emt 0:00:00]} Nf6 {[%emt 0:00:00]} 2. b3 {[%emt 0:00:00]} e6 {[%emt 0:01:04]} 3. Bb2 {[%emt 0:00:00]} d5 {[%emt 0:00:07]} 4. e3 {[%emt 0:00:06]} b6 {[%emt 0:00:08]} 5. c4 {[%emt 0:00:19]} Bb7 {[%emt 0:00:08]} 6. Be2 {[%emt 0:00:19]} Bd6 {[%emt 0:00:14]} 7. O-O {[%emt 0:00:16]} Nbd7 {[%emt 0:00:13]} 8. Nc3 {[%emt 0:00:44]} a6 {[%emt 0:00:08]} 9. d4 {[%emt 0:00:42]} O-O {[%emt 0:00:12]} 10. Rc1 {[%emt 0:01:24]} Qe7 {[%emt 0:00:40]} 11. Qc2 {[%emt 0:00:12]} Rac8 {[%emt 0:02:35]} 12. Bd3 {[%emt 0:02:50]} c5 {[%emt 0:02:43]} 13. cxd5 {[%emt 0:00:25]} exd5 {[%emt 0:00:37]} 14. Qe2 $11 {[%emt 0:00:19]} Ra8 {[%emt 0:03:18]} 15. Rfd1 {[%emt 0:01:29]} Rfd8 {[%emt 0:04:20]} 16. Bf5 {[%emt 0:06:14]} Ne4 {[%emt 0:14:54]} 17. Na4 {[%emt 0:04:48]} Nef6 {[%emt 0:03:29]} 18. dxc5 {[%emt 0:08:58]} bxc5 {[%emt 0:02:14]} 19. Qc2 {[%emt 0:05:44]} g6 {[%emt 0:03:38]} 20. Bh3 {[%emt 0:08:49]} d4 {[%emt 0:04:52]} 21. exd4 {[%emt 0:00:46]} Bxf3 {[%emt 0:04:43]} 22. gxf3 {[%emt 0:00:26]} Nh5 {[%emt 0:02:50]} 23. dxc5 {[%emt 0:06:02]} Bf4 {[%emt 0:21:16]} 24. c6 {[%emt 0:14:56]} Qg5+ {[%emt 0:15:16]} 25. Kf1 {[%emt 0:02:29]} Qh4 {[%emt 0:08:50]} 26. Bxd7 {[%emt 0:00:37]} Qxh2 {[%emt 0:00:16]} 27. Qc3 {[%emt 0:13:15]} Ng3+ {[%emt 0:03:05]} 28. fxg3 {[%emt 0:00:07]} Qh1+ {[%emt 0:00:03]} 29. Ke2 {[%emt 0:00:24]} Re8+ {[%emt 0:00:08]} 30. Bxe8 {[%emt 0:00:18]} Rxe8+ {[%emt 0:00:01]} 31. Kd3 {[%emt 0:00:09]} Re3+ {[%emt 0:02:04]} 32. Kc4 {[%emt 0:00:08]} Rxc3+ {[%emt 0:00:14]} 33. Bxc3 {[%emt 0:00:05]} 1-0

[Event "4th Batumi Cup 2018"]
[Site "Batumi"]
[Date "2018.07.10"]
[Round "9"]
[White "Lomsadze, Davit"]
[Black "Mgeladze, Tamaz"]
[Result "0-1"]
[ECO "B78"]
[WhiteElo "2348"]
[BlackElo "2374"]
[Annotator "NA"]
[PlyCount "49"]
[EventDate "2018.07.03"]
[EventType "swiss"]
[EventCountry "GEO"]
[SourceTitle "playchess.com"]
[Source "ChessBase"]
[SourceQuality "1"]
[TimeControl "40/5400+30:1800+30"]

1. e4 {[%emt 0:01:43]} c5 {[%emt 0:00:00]} 2. Nf3 {[%emt 0:00:32]} d6 {[%emt 0:00:00]} 3. d4 {[%emt 0:00:05]} cxd4 {[%emt 0:00:00]} 4. Nxd4 {[%emt 0:00:03]} Nf6 {[%emt 0:00:00]} 5. Nc3 {[%emt 0:00:53]} g6 {[%emt 0:01:19]} 6. Be3 {[%emt 0:03:01]} Bg7 {[%emt 0:00:07]} 7. f3 {[%emt 0:00:04]} Nc6 {[%emt 0:00:06]} 8. Qd2 {[%emt 0:00:12]} O-O {[%emt 0:00:09]} 9. O-O-O {[%emt 0:00:35]} Bd7 {[%emt 0:00:31]} 10. Bc4 {[%emt 0:02:37]} Ne5 {[%emt 0:03:26]} 11. Bb3 {[%emt 0:00:08]} Rc8 {[%emt 0:00:08]} 12. Kb1 $14 {[%emt 0:01:56] LiveBook: 695 Partien} Nc4 {[%emt 0:03:42]} 13. Bxc4 {[%emt 0:00:09]} Rxc4 {[%emt 0:00:03]} 14. g4 {[%emt 0:00:11]} b5 {[%emt 0:00:15]} 15. h4 {[%emt 0:01:42]} b4 {[%emt 0:00:24]} 16. Nce2 {[%emt 0:00:05]} Qc7 {[%emt 0:00:06]} 17. Bh6 {[%emt 0:00:10]} Bxh6 {[%emt 0:00:13]} 18. Qxh6 {[%emt 0:00:04]} e5 {[%emt 0:00:04]} 19. Nb3 {[%emt 0:00:13]} Rxc2 {[%emt 0:00:24]} 20. Rd2 {[%emt 0:00:42]} Rc8 {[%emt 0:00:06]} 21. Qe3 {[%emt 0:00:26]} Bb5 {[%emt 0:08:51]} 22. Na1 {[%emt 0:02:16]} Rxd2 {[%emt 0:07:21]} 23. Qxd2 {[%emt 0:00:04]} Qc4 {[%emt 0:01:38]} 24. Nc1 {[%emt 0:00:16]} Nxe4 {[%emt 0:00:11]} 25. Qd1 {[%emt 1:24:23]} 0-1

[Event "4th Batumi Cup 2018"]
[Site "Batumi"]
[Date "2018.07.10"]
[Round "9"]
[White "Gvetadze, Sofio"]
[Black "Sattarov, Bobir"]
[Result "1-0"]
[ECO "B55"]
[WhiteElo "2316"]
[BlackElo "2328"]
[Annotator "NA"]
[PlyCount "71"]
[EventDate "2018.07.03"]
[EventType "swiss"]
[EventCountry "GEO"]
[SourceTitle "playchess.com"]
[Source "ChessBase"]
[SourceQuality "1"]
[TimeControl "40/5400+30:1800+30"]

1. e4 {[%emt 0:00:00]} c5 {[%emt 0:15:49]} 2. Nf3 {[%emt 0:00:00]} d6 {[%emt 0:00:07]} 3. d4 {[%emt 0:00:00]} cxd4 {[%emt 0:00:08]} 4. Nxd4 {[%emt 0:00:03]} Nf6 {[%emt 0:00:07]} 5. f3 {[%emt 0:00:04]} e5 {[%emt 0:02:59]} 6. Nb3 {[%emt 0:00:07]} d5 {[%emt 0:00:14]} 7. Bg5 {[%emt 0:00:25]} Be6 {[%emt 0:00:01]} 8. Bxf6 {[%emt 0:00:17]} gxf6 {[%emt 0:00:06]} 9. exd5 {[%emt 0:00:04]} Bxd5 {[%emt 0:02:52]} 10. Nc3 {[%emt 0:01:00]} Bb4 {[%emt 0:07:50]} 11. Qd3 {[%emt 0:01:52]} Bxc3+ {[%emt 0:00:27]} 12. Qxc3 {[%emt 0:00:28]} Bc6 {[%emt 0:00:51]} 13. Bd3 {[%emt 0:04:53]} O-O {[%emt 0:24:06]} 14. Qb4 {[%emt 0:13:32]} f5 {[%emt 0:02:09]} 15. Bxf5 {[%emt 0:01:55]} Qg5 {[%emt 0:00:01]} 16. Qg4 {[%emt 0:07:23]} Qxg4 {[%emt 0:01:58]} 17. Bxg4 {[%emt 0:01:46]} f5 {[%emt 0:02:17]} 18. Bh3 {[%emt 0:00:16]} Nd7 {[%emt 0:00:21]} 19. Na5 {[%emt 0:04:24]} Rac8 {[%emt 0:06:06]} 20. O-O-O {[%emt 0:01:59]} Nb6 {[%emt 0:01:42]} 21. Rhe1 {[%emt 0:02:33]} Rce8 {[%emt 0:02:10]} 22. Nxc6 {[%emt 0:10:49]} bxc6 {[%emt 0:00:24]} 23. Rd6 {[%emt 0:00:09]} Nd5 {[%emt 0:00:32]} 24. Rxc6 {[%emt 0:00:32]} Nf4 {[%emt 0:00:59]} 25. Rc5 {[%emt 0:00:20]} Nxh3 {[%emt 0:00:09]} 26. gxh3 {[%emt 0:00:04]} e4 {[%emt 0:00:04]} 27. fxe4 {[%emt 0:00:20]} fxe4 {[%emt 0:00:01]} 28. Rg5+ {[%emt 0:00:15]} Kh8 {[%emt 0:00:28]} 29. Rg4 {[%emt 0:01:58]} Rf2 {[%emt 0:00:05]} 30. Rgxe4 {[%emt 0:00:27]} Rxe4 {[%emt 0:00:05]} 31. Rxe4 {[%emt 0:00:04]} Rxh2 {[%emt 0:00:05]} 32. Re3 {[%emt 0:00:22]} h5 {[%emt 0:00:14]} 33. b4 {[%emt 0:00:12]} Kg7 {[%emt 0:00:05]} 34. a4 {[%emt 0:00:20]} Kf6 {[%emt 0:00:05]} 35. b5 {[%emt 0:00:30]} Kf5 {[%emt 0:00:05]} 36. a5 {[%emt 0:00:39]} 1-0

[Event "4th Batumi Cup 2018"]
[Site "Batumi"]
[Date "2018.07.10"]
[Round "9"]
[White "Garayev, Kanan"]
[Black "Pourramezanali, Amirreza"]
[Result "1/2-1/2"]
[ECO "A41"]
[WhiteElo "2300"]
[BlackElo "2537"]
[Annotator "ChessBase"]
[PlyCount "57"]
[EventDate "2018.07.03"]
[EventType "swiss"]
[EventCountry "GEO"]
[SourceTitle "playchess.com"]
[Source "ChessBase"]
[SourceQuality "1"]
[TimeControl "40/5400+30:1800+30"]

1. d4 {[%emt 0:03:39]} g6 {[%emt 0:00:00]} 2. c4 {[%emt 0:01:27]} Bg7 {[%emt 0:00:08]} 3. Nc3 {[%emt 0:00:16]} d6 {[%emt 0:00:06]} 4. Nf3 {[%emt 0:02:48]} Bg4 {[%emt 0:00:05]} 5. e3 {[%emt 0:06:23]} e5 {[%emt 0:00:21]} 6. Be2 {[%emt 0:00:55]} exd4 {[%emt 0:03:00]} 7. Nxd4 {[%emt 0:02:57]} Bxe2 {[%emt 0:00:06]} 8. Ndxe2 {[%emt 0:01:46]} Ne7 {[%emt 0:02:01]} 9. e4 {[%emt 0:05:25]} Nbc6 {[%emt 0:03:02]} 10. O-O {[%emt 0:04:35]} O-O {[%emt 0:00:56]} 11. Be3 {[%emt 0:02:08]} f5 {[%emt 0:00:36]} 12. c5 {[%emt 0:06:45]} fxe4 {[%emt 0:07:19]} 13. cxd6 {[%emt 0:00:38]} cxd6 {[%emt 0:02:30]} 14. Nxe4 {[%emt 0:01:39]} d5 {[%emt 0:02:33]} 15. Nc5 {[%emt 0:03:44]} Qc8 {[%emt 0:05:48]} 16. Nd4 {[%emt 0:11:12]} Bxd4 {[%emt 0:08:08]} 17. Bxd4 {[%emt 0:00:02]} Nf5 {[%emt 0:00:25]} 18. Nb3 {[%emt 0:00:23]} Re8 {[%emt 0:06:22]} 19. Bc3 {[%emt 0:05:58]} Qe6 {[%emt 0:03:08]} 20. Re1 {[%emt 0:07:41]} Qf7 {[%emt 0:00:44]} 21. Qd3 {[%emt 0:01:38]} d4 {[%emt 0:01:35]} 22. Bd2 {[%emt 0:01:47]} Ne5 {[%emt 0:09:40]} 23. Qe4 {[%emt 0:04:44]} Nc4 {[%emt 0:01:02]} 24. Qc2 {[%emt 0:00:01]} Qd5 {[%emt 0:07:22]} 25. Rxe8+ {[%emt 0:00:48]} Rxe8 {[%emt 0:00:10]} 26. Re1 {[%emt 0:00:16]} Rxe1+ {[%emt 0:01:41]} 27. Bxe1 {[%emt 0:00:01]} d3 {[%emt 0:34:42]} 28. Qc3 {[%emt 0:00:55]} b5 {[%emt 0:00:00]} 29. Nd2 {[%emt 0:03:05]} 1/2-1/2

[Event "4th Batumi Cup 2018"]
[Site "Batumi"]
[Date "2018.07.10"]
[Round "9"]
[White "Primbetov, Kazbek"]
[Black "Al Hosani, Omran"]
[Result "1-0"]
[ECO "B23"]
[WhiteElo "2257"]
[BlackElo "2089"]
[Annotator "NA"]
[PlyCount "87"]
[EventDate "2018.07.03"]
[EventType "swiss"]
[EventCountry "GEO"]
[SourceTitle "playchess.com"]
[Source "ChessBase"]
[SourceQuality "1"]
[TimeControl "40/5400+30:1800+30"]

1. e4 {[%emt 0:02:30]} c5 {[%emt 0:00:00]} 2. Nc3 {[%emt 0:00:21]} a6 {[%emt 0:00:32]} 3. f4 {[%emt 0:00:10]} b5 {[%emt 0:00:15]} 4. g3 {[%emt 0:00:03]} Bb7 {[%emt 0:00:09]} 5. Bg2 {[%emt 0:00:01]} e6 {[%emt 0:00:18]} 6. d3 {[%emt 0:00:15]} d5 {[%emt 0:01:19]} 7. Qe2 {[%emt 0:00:21]} Nc6 {[%emt 0:07:38]} 8. Nf3 {[%emt 0:00:48]} Nd4 $11 {[%emt 0:00:42] LiveBook: 8 Games} 9. Nxd4 {[%emt 0:00:53]} cxd4 {[%emt 0:00:03]} 10. Nd1 {[%emt 0:00:05]} dxe4 {[%emt 0:00:24]} 11. dxe4 {[%emt 0:00:34]} Qb6 {[%emt 0:18:14]} 12. Nf2 {[%emt 0:01:11]} Nf6 {[%emt 0:00:17]} 13. O-O {[%emt 0:00:09]} Rc8 {[%emt 0:00:41]} 14. Rd1 {[%emt 0:07:02]} Be7 {[%emt 0:01:02]} 15. b3 {[%emt 0:03:25]} Bb4 {[%emt 0:19:04]} 16. g4 {[%emt 0:15:24]} Qc7 {[%emt 0:06:54]} 17. g5 {[%emt 0:12:23]} Nd7 {[%emt 0:00:25]} 18. Bb2 {[%emt 0:05:37]} Bc3 {[%emt 0:04:32]} 19. Bxc3 {[%emt 0:00:34]} Qxc3 {[%emt 0:00:13]} 20. Qd2 {[%emt 0:02:26]} e5 {[%emt 0:03:36]} 21. Bh3 {[%emt 0:07:41]} Qxc2 {[%emt 0:12:07]} 22. Qb4 {[%emt 0:21:06]} Qc7 {[%emt 0:14:21]} 23. Nd3 {[%emt 0:02:53]} Bxe4 {[%emt 0:03:44]} 24. Rac1 {[%emt 0:00:23]} Bc6 {[%emt 0:01:48]} 25. Re1 {[%emt 0:09:16]} a5 {[%emt 0:02:17]} 26. Bxd7+ {[%emt 0:01:02]} Bxd7 {[%emt 0:01:52]} 27. Qxd4 {[%emt 0:01:44]} Qb8 {[%emt 0:00:32]} 28. Rxe5+ {[%emt 0:04:05]} Kd8 {[%emt 0:00:26]} 29. Nc5 {[%emt 0:00:21]} Rc7 {[%emt 0:00:18]} 30. Rd5 {[%emt 0:00:48]} Qa7 {[%emt 0:00:27]} 31. Rd1 {[%emt 0:00:32]} Kc8 {[%emt 0:00:27]} 32. Nxd7 {[%emt 0:00:18]} Qxd4+ {[%emt 0:00:28]} 33. R1xd4 {[%emt 0:00:15]} Rc1+ {[%emt 0:00:05]} 34. Kg2 {[%emt 0:00:11]} Rc2+ {[%emt 0:00:03]} 35. Rd2 {[%emt 0:00:44]} Rxd2+ {[%emt 0:00:05]} 36. Rxd2 {[%emt 0:00:02]} h6 {[%emt 0:00:53]} 37. Ne5 {[%emt 0:00:36]} hxg5 {[%emt 0:00:15]} 38. Nxf7 {[%emt 0:00:30]} Rf8 {[%emt 0:00:02]} 39. Nd6+ {[%emt 0:00:22]} Kc7 {[%emt 0:00:07]} 40. fxg5 {[%emt 0:00:00]} Kc6 {[%emt 0:00:00]} 41. h4 {[%emt 0:00:41]} Rf4 {[%emt 0:00:47]} 42. Kg3 {[%emt 0:00:04]} Rf1 {[%emt 0:00:09]} 43. Ne4 {[%emt 0:00:17]} a4 {[%emt 0:00:06]} 44. Rd6+ {[%emt 0:00:24]} 1-0

[Event "4th Batumi Cup 2018"]
[Site "Batumi"]
[Date "2018.07.10"]
[Round "9"]
[White "Martynyuk, Elizaveta"]
[Black "Eynullayev, Altay"]
[Result "0-1"]
[ECO "C01"]
[WhiteElo "2182"]
[BlackElo "2134"]
[Annotator "NA"]
[PlyCount "62"]
[EventDate "2018.07.03"]
[EventType "swiss"]
[EventCountry "GEO"]
[SourceTitle "playchess.com"]
[Source "ChessBase"]
[SourceQuality "1"]
[TimeControl "40/5400+30:1800+30"]

1. e4 {[%emt 0:00:00]} e6 {[%emt 0:00:00]} 2. d4 {[%emt 0:00:00]} d5 {[%emt 0:00:00]} 3. Nc3 {[%emt 0:00:00]} Bb4 {[%emt 0:00:00]} 4. exd5 {[%emt 0:00:00]} exd5 {[%emt 0:00:00]} 5. Bd3 {[%emt 0:00:00]} Nc6 {[%emt 0:00:00]} 6. Nge2 {[%emt 0:00:33]} Nge7 {[%emt 0:00:00]} 7. O-O {[%emt 0:00:07]} O-O {[%emt 0:00:01]} 8. a3 {[%emt 0:00:17]} Ba5 {[%emt 0:00:24]} 9. h3 {[%emt 0:03:12]} Bf5 {[%emt 0:03:18]} 10. Be3 {[%emt 0:03:44]} Qd7 {[%emt 0:00:30]} 11. Ng3 {[%emt 0:00:30]} Bxd3 {[%emt 0:00:30]} 12. Qxd3 {[%emt 0:00:30]} Bxc3 {[%emt 0:00:30]} 13. Qxc3 {[%emt 0:00:30]} Ng6 {[%emt 0:00:30]} 14. Ne2 {[%emt 0:00:30]} Nce7 {[%emt 0:00:30]} 15. Rae1 {[%emt 0:00:30]} Rae8 {[%emt 0:00:30]} 16. Bd2 {[%emt 0:00:30]} Nf5 {[%emt 0:00:30]} 17. Qd3 {[%emt 0:00:30]} Re4 {[%emt 0:00:30]} 18. f3 {[%emt 0:00:30]} Re7 {[%emt 0:00:30]} 19. Bb4 {[%emt 0:00:30]} Re3 {[%emt 0:00:30]} 20. Qd2 {[%emt 0:00:30]} Rfe8 {[%emt 0:00:30]} 21. Kf2 {[%emt 0:00:30]} Qd8 {[%emt 0:00:30]} 22. Qd1 {[%emt 0:00:30]} Qh4+ {[%emt 0:00:30]} 23. Kg1 {[%emt 0:00:30]} h6 {[%emt 0:00:30]} 24. Bd2 {[%emt 0:00:30]} R3e6 {[%emt 0:00:30]} 25. c3 {[%emt 0:00:30]} Ne3 {[%emt 0:00:30]} 26. Bxe3 {[%emt 0:00:30]} Rxe3 {[%emt 0:00:30]} 27. Qd2 {[%emt 0:00:30]} Nf4 {[%emt 0:00:30]} 28. Nxf4 {[%emt 0:00:30]} Rxe1 {[%emt 0:00:30]} 29. Nxd5 {[%emt 0:00:30]} R1e2 {[%emt 0:00:30]} 30. Qc1 {[%emt 0:00:30]} Qg3 {[%emt 0:00:30]} 31. Nf4 {[%emt 0:00:30]} Rxg2+ {[%emt 0:00:30]} 0-1

[Event "4th Batumi Cup 2018"]
[Site "Batumi"]
[Date "2018.07.10"]
[Round "9"]
[White "Tereladze, Sopiko"]
[Black "Martynov, Roman"]
[Result "1/2-1/2"]
[ECO "B31"]
[WhiteElo "2169"]
[BlackElo "2366"]
[Annotator "NA"]
[PlyCount "62"]
[EventDate "2018.07.03"]
[EventType "swiss"]
[EventCountry "GEO"]
[SourceTitle "playchess.com"]
[Source "ChessBase"]
[SourceQuality "1"]
[TimeControl "40/5400+30:1800+30"]

1. e4 {[%emt 0:04:33]} c5 {[%emt 0:00:00]} 2. Qe2 {[%emt 0:01:44]} Nc6 {[%emt 0:01:38]} 3. d3 {[%emt 0:05:38]} g6 {[%emt 0:08:11]} 4. Nf3 {[%emt 0:06:42]} Bg7 {[%emt 0:00:27]} 5. Nc3 {[%emt 0:09:22]} d6 {[%emt 0:03:07]} 6. h3 {[%emt 0:00:20]} b5 {[%emt 0:08:39]} 7. g3 {[%emt 0:04:10]} e6 {[%emt 0:10:39]} 8. Bg2 {[%emt 0:01:23]} Nge7 {[%emt 0:00:15]} 9. O-O {[%emt 0:00:08]} Rb8 {[%emt 0:00:34]} 10. Be3 {[%emt 0:13:02]} b4 {[%emt 0:05:24]} 11. Nd1 {[%emt 0:00:13]} O-O {[%emt 0:00:39]} 12. Qd2 {[%emt 0:01:18]} Re8 {[%emt 0:02:04]} 13. d4 {[%emt 0:00:43]} Qb6 {[%emt 0:13:48]} 14. dxc5 {[%emt 0:07:39]} dxc5 {[%emt 0:00:04]} 15. Bh6 {[%emt 0:10:59]} Bh8 {[%emt 0:03:06]} 16. Qg5 {[%emt 0:00:41]} f6 {[%emt 0:13:55]} 17. Qh4 {[%emt 0:00:37]} Nd8 {[%emt 0:00:34]} 18. Ne3 {[%emt 0:01:36]} Nf7 {[%emt 0:01:48]} 19. e5 {[%emt 0:03:01]} Nf5 {[%emt 0:03:54]} 20. Nxf5 {[%emt 0:00:14]} exf5 {[%emt 0:00:02]} 21. exf6 {[%emt 0:01:29]} Bxf6 {[%emt 0:02:08]} 22. Ng5 {[%emt 0:03:01]} Nxg5 {[%emt 0:01:26]} 23. Bxg5 {[%emt 0:00:01]} Bxb2 {[%emt 0:00:10]} 24. Rab1 {[%emt 0:01:53]} Be5 {[%emt 0:09:16]} 25. Rfe1 {[%emt 0:10:14]} Bb7 {[%emt 0:02:44]} 26. Qc4+ {[%emt 0:02:02]} Qe6 {[%emt 0:03:26]} 27. Qxc5 {[%emt 0:02:04]} Bxg2 {[%emt 0:00:08]} 28. Kxg2 {[%emt 0:00:22]} Rbc8 {[%emt 0:00:36]} 29. Qxb4 {[%emt 0:02:59]} Qxa2 {[%emt 0:02:42]} 30. Qb3+ {[%emt 0:02:42]} Qxb3 {[%emt 0:00:12]} 31. cxb3 {[%emt 0:02:21]} Bd4 {[%emt 0:00:57]} 1/2-1/2